fUSD/lending_fUSD_20240129
["ID","MTS","AMOUNT","RATE_DAILY","PERIOD"]
[312974625,1706560265687,-500.0,0.00052602,31]
[312974626,1706560265696,-500.0,0.00052602,31]
[312974627,1706560265705,-760.13,0.00052602,31]
[312974628,1706560265716,-500.0,0.00052602,31]
[312974629,1706560265726,-526.06,0.00052602,31]
[312974630,1706560265735,-293.60802442,0.00052602,31]
[312974631,1706560265744,-605.52790268,0.00052602,31]
[312974632,1706560265753,-500.0,0.00052602,31]
[312974633,1706560265763,-500.0,0.00052602,31]
[312974634,1706560265771,-1016.8,0.00052602,31]
[312974635,1706560265781,-4583.74,0.00052602,31]
[312974636,1706560265790,-1755.03,0.00052602,7]
[312974637,1706560265799,-380.47621632,0.00052602,31]
[312974638,1706560265808,-1002.26,0.00052602,31]
[312974639,1706560265817,-4249.45,0.00052602,31]
[312974640,1706560265826,-503.19,0.00052602,31]
[312974641,1706560265838,-10182.67,0.00052602,31]
[312974642,1706560265847,-500.0,0.00052602,31]
[312974643,1706560265856,-1038.15,0.00052602,31]
[312974644,1706560265865,-1871.53,0.00052602,31]
[312974645,1706560265874,-500.0,0.00052602,31]
[312974646,1706560265884,-1548.31,0.00052602,31]
[312974647,1706560265894,-500.0,0.00052602,31]
[312974648,1706560265903,-1007.6,0.00052602,31]
[312974649,1706560265913,-500.0,0.00052602,31]
[312974650,1706560265923,-500.0,0.00052602,31]
[312974651,1706560265933,-500.0,0.00052602,31]
[312974652,1706560265942,-4198.38,0.00052602,31]
[312974653,1706560265951,-4148.68,0.00052602,5]
[312974654,1706560265963,-500.0,0.00052602,31]
[312974655,1706560265972,-1746.98,0.00052602,31]
[312974656,1706560265982,-569.88,0.00052602,31]
[312974657,1706560265991,-500.0,0.00052602,31]
[312974658,1706560266000,-946.79,0.00052602,31]
[312974659,1706560266011,-659.85,0.00052602,31]
[312974660,1706560266020,-500.0,0.00052602,31]
[312974661,1706560266029,-1063.77,0.00052602,31]
[312974662,1706560266039,-7962.11,0.00052602,31]
[312974663,1706560266048,-3153.28,0.00052602,31]
[312974664,1706560266058,-500.0,0.00052602,31]
[312974665,1706560266067,-500.0,0.00052602,31]
[312974666,1706560266077,-500.0,0.00052602,31]
[312974667,1706560266087,-4332.43,0.00052602,31]
[312974668,1706560266096,-1133.9,0.00052602,31]
[312974669,1706560266106,-1617.28,0.00052602,31]
[312974670,1706560266115,-5863.89,0.00052602,31]
[312974671,1706560266125,-559.84219907,0.00052602,31]
[312974672,1706560266134,-500.0,0.00052602,31]
[312974673,1706560266144,-1197.97,0.00052602,31]
[312974674,1706560266153,-1997.59,0.00052602,31]
[312974675,1706560266162,-500.0,0.00052602,7]
[312974676,1706560266172,-1149.94,0.00052602,31]
[312974677,1706560266183,-681.59,0.00052602,31]
[312974678,1706560266192,-500.0,0.00052602,31]
[312974679,1706560266201,-500.0,0.00052602,31]
[312974680,1706560266212,-500.0,0.00052602,31]
[312974681,1706560266221,-500.0,0.00052602,31]
[312974682,1706560266231,-1457.36,0.00052602,31]
[312974683,1706560266241,-508.06,0.00052602,31]
[312974684,1706560266250,-500.0,0.00052602,31]
[312974685,1706560266259,-1023.2,0.00052602,31]
[312974686,1706560266268,-1286.28,0.00052602,31]
[312974687,1706560266277,-500.0,0.00052602,7]
[312974688,1706560266286,-500.0,0.00052602,31]
[312974689,1706560266295,-507.82,0.00052602,31]
[312974690,1706560266305,-642.3,0.00052602,31]
[312974691,1706560266315,-1436.82,0.00052602,31]
[312974692,1706560266324,-2904.01,0.00052602,5]
[312974693,1706560266333,-500.0,0.00052602,31]
[312974694,1706560266343,-1073.77,0.00052602,31]
[312974695,1706560266353,-500.0,0.00052602,31]
[312974696,1706560266362,-500.0,0.00052602,31]
[312974697,1706560266372,-500.0,0.00052602,31]
[312974698,1706560266382,-902.23,0.00052602,31]
[312974699,1706560266391,-500.0,0.00052602,31]
[312974700,1706560266400,-1043.52,0.00052602,31]
[312974701,1706560266409,-500.0,0.00052602,31]
[312974702,1706560266419,-2075.54,0.00052602,31]
[312974703,1706560266428,-1153.25,0.00052602,31]
[312974704,1706560266437,-500.0,0.00052602,31]
[312974705,1706560266446,-1170.76,0.00052602,31]
[312974706,1706560266455,-992.98,0.00052602,31]
[312974707,1706560266466,-1219.32,0.00052602,31]
[312974708,1706560266475,-2355.86,0.00052602,31]
[312974709,1706560266485,-500.0,0.00052602,31]
[312974710,1706560266494,-1137.14,0.00052602,31]
[312974711,1706560266503,-1856.63,0.00052602,31]
[312974712,1706560266513,-1046.32,0.00052602,31]
[312974713,1706560266523,-525.44,0.00052602,31]
[312974714,1706560266532,-2810.09,0.00052602,31]
[312974715,1706560266542,-4393.08,0.00052602,31]
[312974716,1706560266551,-777.18,0.00052602,31]
[312974717,1706560266561,-500.0,0.00052602,31]
[312974718,1706560266570,-500.0,0.00052602,31]
[312974719,1706560266579,-500.0,0.00052602,31]
[312974720,1706560266589,-500.0,0.00052602,31]
[312974721,1706560266599,-543.5,0.00052602,31]
[312974722,1706560266608,-654.21,0.00052602,31]
[312974723,1706560266618,-1384.66,0.00052602,31]
[312974724,1706560266627,-2160.75,0.00052602,31]
[312974725,1706560266636,-2285.93,0.00052602,7]
[312974726,1706560266646,-745.11,0.00052602,31]
[312974727,1706560266655,-1522.49,0.00052602,31]
[312974728,1706560266664,-1223.13,0.00052602,31]
[312974729,1706560266673,-2278.99,0.00052602,31]
[312974730,1706560266682,-2428.38,0.00052602,31]
[312974731,1706560266692,-2579.65,0.00052602,31]
[312974732,1706560266702,-500.0,0.00052602,31]
[312974733,1706560266711,-1020.99,0.00052602,31]
[312974734,1706560266720,-500.0,0.00052602,31]
[312974735,1706560266729,-636.57,0.00052602,31]
[312974736,1706560266739,-500.0,0.00052602,14]
[312974737,1706560266749,-818.65,0.00052602,31]
[312974738,1706560266759,-521.29,0.00052602,31]
[312974739,1706560266769,-1372.59,0.00052602,31]
[312974740,1706560266778,-500.0,0.00052602,31]
[312974741,1706560266787,-500.0,0.00052602,31]
[312974742,1706560266797,-500.0,0.00052602,31]
[312974743,1706560266806,-1474.92,0.00052602,31]
[312974744,1706560266817,-500.0,0.00052602,31]
[312974745,1706560266826,-434.90654289,0.00052602,31]
[312974746,1706560266838,-529.19,0.00052602,31]
[312974747,1706560266848,-500.0,0.00052602,31]
[312974748,1706560266857,-500.0,0.00052602,31]
[312974749,1706560266867,-4936.79,0.00052602,31]
[312974750,1706560266877,-820.98,0.00052602,31]
[312974751,1706560266886,-500.0,0.00052602,31]
[312974752,1706560266896,-1033.55,0.00052602,31]
[312974753,1706560266906,-1797.82,0.00052602,31]
[312974754,1706560266917,-527.47,0.00052602,31]
[312974755,1706560266927,-1398.26,0.00052602,31]
[312974756,1706560266937,-1095.17,0.00052602,31]
[312974757,1706560266948,-1726.01,0.00052602,31]
[312974758,1706560266957,-1943.7,0.00052602,31]
[312974759,1706560266966,-500.0,0.00052602,31]
[312974760,1706560266976,-500.0,0.00052602,31]
[312974761,1706560266985,-500.0,0.00052602,31]
[312974762,1706560266995,-500.0,0.00052602,31]
[312974763,1706560267005,-500.0,0.00052602,31]
[312974764,1706560267014,-558.58,0.00052602,31]
[312974765,1706560267024,-500.0,0.00052602,31]
[312974766,1706560267034,-1144.47,0.00052602,31]
[312974767,1706560267044,-7410.07,0.00052602,31]
[312974768,1706560267054,-500.0,0.00052602,31]
[312974769,1706560267064,-1617.52,0.00052602,31]
[312974770,1706560267074,-2653.45,0.00052602,31]
[312974771,1706560267084,-500.0,0.00052602,31]
[312974772,1706560267094,-500.0,0.00052602,31]
[312974773,1706560267104,-500.0,0.00052602,31]
[312974774,1706560267114,-500.0,0.00052602,31]
[312974775,1706560267123,-10106.11,0.00052602,31]
[312974776,1706560267133,-500.0,0.00052602,31]
[312974777,1706560267143,-500.0,0.00052602,31]
[312974778,1706560267152,-500.0,0.00052602,31]
[312974779,1706560267162,-1502.27,0.00052602,31]
[312974780,1706560267171,-500.0,0.00052602,31]
[312974781,1706560267181,-500.0,0.00052602,31]
[312974782,1706560267191,-362.14715875,0.00052602,31]
[312974783,1706560267201,-1138.89,0.00052602,31]
[312974784,1706560267210,-2268.94,0.00052602,31]
[312974785,1706560267220,-642.23,0.00052602,31]
[312974786,1706560267229,-724.26,0.00052602,31]
[312974787,1706560267239,-564.2,0.00052602,2]
[312974788,1706560267248,-500.0,0.00052602,31]
[312974789,1706560267257,-2909.62,0.00052602,31]
[312974790,1706560267266,-1338.16,0.00052602,31]
[312974791,1706560267276,-500.0,0.00052602,2]
[312974792,1706560267285,-536.92,0.00052602,31]
[312974793,1706560267294,-764.64,0.00052602,2]
[312974794,1706560267304,-846.95,0.00052602,31]
[312974795,1706560267313,-830.73,0.00052602,31]
[312974796,1706560267322,-546.02,0.00052602,31]
[312974797,1706560267332,-1019.65,0.00052602,31]
[312974798,1706560267341,-1849.52,0.00052602,31]
[312974799,1706560267350,-500.0,0.00052602,31]
[312974800,1706560267359,-560.49,0.00052602,31]
[312974801,1706560267369,-500.0,0.00052602,31]
[312974802,1706560267378,-1462.48,0.00052602,31]
[312974803,1706560267388,-500.0,0.00052602,31]
[312974804,1706560267397,-434.80093049,0.00052602,31]
[312974805,1706560267406,-1467.78,0.00052602,31]
[312974806,1706560267416,-5164.09055,0.00052603,30]
[312974807,1706560267425,-158.93642251,0.00052641,60]
[312974808,1706560267434,-158.0390581,0.00052642,60]
[312974809,1706560267443,-158.93642251,0.00052643,60]
[312974810,1706560267452,-500.0,0.00052645,120]
[312974811,1706560267462,-19950.05082351,0.00052671,2]
[312974812,1706560267471,-4084.0,0.0005268,120]
[312974813,1706560267481,-2677.0,0.0005268,120]
[312974814,1706560267490,-4084.0,0.0005269,120]
[312974815,1706560267499,-2677.0,0.0005269,120]
[312974816,1706560267508,-158.03905811,0.00052699,60]
[312974817,1706560267518,-200.0,0.000527,30]
[312974818,1706560267527,-2100.0,0.000527,19]
[312974819,1706560267537,-153.50137238,0.00052714,60]
[312974820,1706560267546,-171.30628108,0.00052721,60]
[312974821,1706560267555,-195.66666667,0.0005274,60]
[312974822,1706560267564,-169.03608846,0.00052756,60]
[312974823,1706560267573,-497171.70050135,0.00052764,7]
[312974824,1706560267582,-154.67281811,0.00052765,60]
[312974825,1706560267591,-154.67281811,0.00052768,60]
[312974826,1706560267600,-153.29755698,0.00052788,60]
[312974827,1706560267609,-367.0,0.0005279,2]
[312974828,1706560267618,-237.0,0.0005279,2]
[312974829,1706560267627,-151.0129,0.00052798,59]
[312974830,1706560267636,-963.38,0.000528,21]
[312974831,1706560267645,-963.88,0.000528,19]
[312974832,1706560267655,-1038.6,0.000528,22]
[312974833,1706560267664,-300.0,0.000528,30]
[312974834,1706560267674,-5217.54703627,0.000528,30]
[312974835,1706560267683,-2100.0,0.000528,19]
[312974836,1706560267692,-155.84294884,0.00052809,60]
[312974837,1706560267701,-157.47372314,0.00052818,60]
[312974838,1706560267712,-157.83769784,0.00052836,60]
[312974839,1706560267720,-157.83769784,0.00052837,60]
[312974840,1706560267729,-200.0,0.00052876,31]
[312974841,1706560267738,-616.76757982,0.00052876,31]
[312974842,1706560267747,-499.89169788,0.00052876,31]
[312974843,1706560267757,-802.85,0.00052876,31]
[312974844,1706560267766,-690.05,0.00052876,31]
[312974845,1706560267775,-500.0,0.00052876,7]
[312974846,1706560267784,-612.45,0.00052876,31]
[312974847,1706560267793,-960.0,0.00052876,31]
[312974848,1706560267802,-500.0,0.00052876,2]
[312974849,1706560267811,-500.0,0.00052876,31]
[312974850,1706560267820,-500.0,0.00052876,31]
[312974851,1706560267831,-660.93,0.00052876,31]
[312974852,1706560267844,-500.0,0.00052876,31]
[312974853,1706560267854,-500.0,0.00052876,31]
[312974854,1706560267863,-588.26,0.00052876,31]
[312974855,1706560267872,-500.0,0.00052876,31]
[312974856,1706560267882,-500.0,0.00052876,31]
[312974857,1706560267891,-803.89,0.00052876,2]
[312974858,1706560267900,-584.71,0.00052876,31]
[312974859,1706560267909,-518.29,0.00052876,15]
[312974860,1706560267918,-794.24,0.00052876,2]
[312974861,1706560267928,-253.60004444,0.00052876,31]
[312974862,1706560267937,-500.0,0.00052876,31]
[312974863,1706560267946,-536.17,0.00052876,31]
[312974864,1706560267955,-500.0,0.00052876,31]
[312974865,1706560267965,-566.19455033,0.00052876,2]
[312974866,1706560267974,-608.92,0.00052876,31]
[312974867,1706560267984,-500.0,0.00052876,31]
[312974868,1706560267994,-500.0,0.00052876,31]
[312974869,1706560268003,-500.0,0.00052876,31]
[312974870,1706560268013,-500.0,0.00052876,31]
[312974871,1706560268022,-500.0,0.00052876,31]
[312974872,1706560268032,-500.0,0.00052876,31]
[312974873,1706560268042,-794.87,0.00052876,31]
[312974874,1706560268052,-500.0,0.00052876,31]
[312974875,1706560268061,-637.14,0.00052876,31]
[312974876,1706560268070,-500.0,0.00052876,31]
[312974877,1706560268080,-436.5009187,0.00052876,31]
[312974878,1706560268089,-500.0,0.00052876,31]
[312974879,1706560268098,-500.0,0.00052876,31]
[312974880,1706560268107,-529.13840215,0.00052876,120]
[312974881,1706560268116,-500.0,0.00052876,31]
[312974882,1706560268125,-500.0,0.00052876,31]
[312974883,1706560268134,-209.66542617,0.00052876,31]
[312974884,1706560268144,-500.0,0.00052876,31]
[312974885,1706560268153,-500.0,0.00052876,31]
[312974886,1706560268162,-500.0,0.00052876,31]
[312974887,1706560268171,-500.0,0.00052876,31]
[312974888,1706560268180,-527.51,0.00052876,2]
[312974889,1706560268190,-523.81203939,0.00052876,31]
[312974890,1706560268199,-654.97,0.00052876,31]
[312974891,1706560268211,-1071.26,0.00052876,7]
[312974892,1706560268221,-500.0,0.00052876,31]
[312974893,1706560268232,-500.0,0.00052876,31]
[312974894,1706560268241,-1434.64,0.00052876,31]
[312974895,1706560268250,-500.0,0.00052876,31]
[312974896,1706560268259,-179.95404934,0.00052876,31]
[312974897,1706560268269,-1000.0,0.00052876,7]
[312974898,1706560268278,-500.0,0.00052876,31]
[312974899,1706560268289,-189.85472406,0.00052876,31]
[312974900,1706560268298,-613.37,0.00052876,31]
[312974901,1706560268442,-500.0,0.00052876,31]
[312974902,1706560268452,-500.0,0.00052876,2]
[312974903,1706560268463,-1690.03,0.00052876,31]
[312974904,1706560268472,-1985.41,0.00052876,2]
[312974905,1706560268481,-500.0,0.00052876,31]
[312974906,1706560268490,-500.0,0.00052876,2]
[312974907,1706560268499,-500.0,0.00052876,31]
[312974908,1706560268509,-500.0,0.00052876,31]
[312974909,1706560268518,-500.0,0.00052876,31]
[312974910,1706560268527,-500.0,0.00052876,31]
[312974911,1706560268537,-183.12691732,0.00052876,31]
[312974912,1706560268548,-500.0,0.00052876,31]
[312974913,1706560268559,-500.0,0.00052876,31]
[312974914,1706560268568,-643.28294053,0.00052876,31]
[312974915,1706560268579,-256.69993596,0.00052876,31]
[312974916,1706560268590,-500.0,0.00052876,31]
[312974917,1706560268599,-500.0,0.00052876,31]
[312974918,1706560268608,-558.1538653,0.00052876,31]
[312974919,1706560268617,-500.0,0.00052876,31]
[312974920,1706560268626,-500.0,0.00052876,31]
[312974921,1706560268635,-500.0,0.00052876,31]
[312974922,1706560268645,-500.0,0.00052876,31]
[312974923,1706560268654,-500.0,0.00052876,31]
[312974924,1706560268663,-500.0,0.00052876,31]
[312974925,1706560268672,-500.0,0.00052876,31]
[312974926,1706560268682,-423.0472509,0.00052876,31]
[312974927,1706560268691,-929.78,0.00052876,31]
[312974928,1706560268700,-500.0,0.00052876,31]
[312974929,1706560268710,-500.0,0.00052876,31]
[312974930,1706560268719,-500.0,0.00052876,31]
[312974931,1706560268729,-689.25,0.00052876,31]
[312974932,1706560268738,-500.0,0.00052876,31]
[312974933,1706560268748,-500.0,0.00052876,31]
[312974934,1706560268758,-500.0,0.00052876,31]
[312974935,1706560268768,-500.0,0.00052876,31]
[312974936,1706560268778,-1000.0,0.00052876,31]
[312974937,1706560268788,-525.86,0.00052876,31]
[312974938,1706560268798,-500.0,0.00052876,31]
[312974939,1706560268807,-500.0,0.00052876,31]
[312974940,1706560268817,-500.0,0.00052876,31]
[312974941,1706560268827,-508.14,0.00052876,31]
[312974942,1706560268840,-500.0,0.00052876,31]
[312974943,1706560268850,-500.0,0.00052876,31]
[312974944,1706560268861,-703.04,0.00052876,31]
[312974945,1706560268871,-1153.07,0.00052876,31]
[312974946,1706560268881,-733.87,0.00052876,31]
[312974947,1706560268890,-500.0,0.00052876,31]
[312974948,1706560268899,-500.0,0.00052876,2]
[312974949,1706560268908,-500.0,0.00052876,31]
[312974950,1706560268919,-500.0,0.00052876,31]
[312974951,1706560268929,-500.0,0.00052876,31]
[312974952,1706560268939,-500.0,0.00052876,31]
[312974953,1706560268948,-500.0,0.00052876,31]
[312974954,1706560268959,-542.06,0.00052876,31]
[312974955,1706560268969,-500.0,0.00052876,31]
[312974956,1706560268979,-500.0,0.00052876,31]
[312974957,1706560268989,-500.0,0.00052876,31]
[312974958,1706560268999,-500.0,0.00052876,31]
[312974959,1706560269009,-760.13,0.00052876,31]
[312974960,1706560269019,-500.0,0.00052876,31]
[312974961,1706560269028,-526.06,0.00052876,31]
[312974962,1706560269038,-500.0,0.00052876,31]
[312974963,1706560269048,-500.0,0.00052876,31]
[312974964,1706560269058,-1016.8,0.00052876,31]
[312974965,1706560269067,-4583.74,0.00052876,31]
[312974966,1706560269076,-1755.03,0.00052876,7]
[312974967,1706560269086,-1002.26,0.00052876,31]
[312974968,1706560269097,-4249.45,0.00052876,31]
[312974969,1706560269107,-503.19,0.00052876,31]
[312974970,1706560269116,-10182.67,0.00052876,31]
[312974971,1706560269125,-500.0,0.00052876,31]
[312974972,1706560269135,-1038.15,0.00052876,31]
[312974973,1706560269145,-1871.53,0.00052876,31]
[312974974,1706560269155,-500.0,0.00052876,31]
[312974975,1706560269165,-1548.31,0.00052876,31]
[312974976,1706560269175,-500.0,0.00052876,31]
[312974977,1706560269185,-1007.6,0.00052876,31]
[312974978,1706560269196,-500.0,0.00052876,31]
[312974979,1706560269205,-500.0,0.00052876,31]
[312974980,1706560269215,-500.0,0.00052876,31]
[312974981,1706560269224,-4198.38,0.00052876,31]
[312974982,1706560269234,-4148.68,0.00052876,5]
[312974983,1706560269243,-500.0,0.00052876,31]
[312974984,1706560269252,-1746.98,0.00052876,31]
[312974985,1706560269261,-569.88,0.00052876,31]
[312974986,1706560269270,-500.0,0.00052876,31]
[312974987,1706560269280,-946.79,0.00052876,31]
[312974988,1706560269290,-659.85,0.00052876,31]
[312974989,1706560269299,-500.0,0.00052876,31]
[312974990,1706560269309,-1063.77,0.00052876,31]
[312974991,1706560269318,-7962.11,0.00052876,31]
[312974992,1706560269328,-3153.28,0.00052876,31]
[312974993,1706560269338,-500.0,0.00052876,31]
[312974994,1706560269347,-500.0,0.00052876,31]
[312974995,1706560269356,-500.0,0.00052876,31]
[312974996,1706560269365,-4332.43,0.00052876,31]
[312974997,1706560269374,-1133.9,0.00052876,31]
[312974998,1706560269384,-1617.28,0.00052876,31]
[312974999,1706560269393,-5863.89,0.00052876,31]
[312975000,1706560269403,-500.0,0.00052876,31]
[312975001,1706560269412,-1197.97,0.00052876,31]
[312975002,1706560269421,-1997.59,0.00052876,31]
[312975003,1706560269430,-500.0,0.00052876,7]
[312975004,1706560269439,-1149.94,0.00052876,31]
[312975005,1706560269449,-681.59,0.00052876,31]
[312975006,1706560269459,-316.54634103,0.00052876,31]
[312975007,1706560269468,-500.0,0.00052876,31]
[312975008,1706560269478,-500.0,0.00052876,31]
[312975009,1706560269488,-500.0,0.00052876,31]
[312975010,1706560269497,-1457.36,0.00052876,31]
[312975011,1706560269506,-508.06,0.00052876,31]
[312975012,1706560269516,-500.0,0.00052876,31]
[312975013,1706560269526,-1023.2,0.00052876,31]
[312975014,1706560269535,-1286.28,0.00052876,31]
[312975015,1706560269544,-500.0,0.00052876,7]
[312975016,1706560269553,-500.0,0.00052876,31]
[312975017,1706560269562,-507.82,0.00052876,31]
[312975018,1706560269572,-642.3,0.00052876,31]
[312975019,1706560269581,-1436.82,0.00052876,31]
[312975020,1706560269590,-2904.01,0.00052876,5]
[312975021,1706560269600,-500.0,0.00052876,31]
[312975022,1706560269609,-500.0,0.00052876,31]
[312975023,1706560269618,-1073.77,0.00052876,31]
[312975024,1706560269628,-500.0,0.00052876,31]
[312975025,1706560269637,-500.0,0.00052876,31]
[312975026,1706560269647,-902.23,0.00052876,31]
[312975027,1706560269656,-500.0,0.00052876,31]
[312975028,1706560269665,-1043.52,0.00052876,31]
[312975029,1706560269675,-563.42369322,0.00052876,31]
[312975030,1706560269685,-2075.54,0.00052876,31]
[312975031,1706560269694,-1153.25,0.00052876,31]
[312975032,1706560269704,-500.0,0.00052876,31]
[312975033,1706560269713,-1170.76,0.00052876,31]
[312975034,1706560269723,-992.98,0.00052876,31]
[312975035,1706560269733,-1219.32,0.00052876,31]
[312975036,1706560269741,-2355.86,0.00052876,31]
[312975037,1706560269751,-212.33224946,0.00052876,31]
[312975038,1706560269761,-1137.14,0.00052876,31]
[312975039,1706560269770,-1856.63,0.00052876,31]
[312975040,1706560269779,-525.44,0.00052876,31]
[312975041,1706560269789,-1046.32,0.00052876,31]
[312975042,1706560269798,-2810.09,0.00052876,31]
[312975043,1706560269807,-4393.08,0.00052876,31]
[312975044,1706560269817,-777.18,0.00052876,31]
[312975045,1706560269826,-500.0,0.00052876,31]
[312975046,1706560269838,-500.0,0.00052876,31]
[312975047,1706560269848,-500.0,0.00052876,31]
[312975048,1706560269858,-500.0,0.00052876,31]
[312975049,1706560269867,-543.5,0.00052876,31]
[312975050,1706560269877,-654.21,0.00052876,31]
[312975051,1706560269887,-1384.66,0.00052876,31]
[312975052,1706560269896,-2160.75,0.00052876,31]
[312975053,1706560269905,-2285.93,0.00052876,7]
[312975054,1706560269916,-745.11,0.00052876,31]
[312975055,1706560269926,-1522.49,0.00052876,31]
[312975056,1706560269935,-1223.13,0.00052876,31]
[312975057,1706560269945,-2278.99,0.00052876,31]
[312975058,1706560269955,-2428.38,0.00052876,31]
[312975059,1706560269965,-2579.65,0.00052876,31]
[312975060,1706560269975,-500.0,0.00052876,31]
[312975061,1706560269984,-1020.99,0.00052876,31]
[312975062,1706560269994,-500.0,0.00052876,31]
[312975063,1706560270004,-636.57,0.00052876,31]
[312975064,1706560270013,-500.0,0.00052876,14]
[312975065,1706560270024,-521.29,0.00052876,31]
[312975066,1706560270033,-818.65,0.00052876,31]
[312975067,1706560270043,-1372.59,0.00052876,31]
[312975068,1706560270053,-500.0,0.00052876,31]
[312975069,1706560270063,-500.0,0.00052876,31]
[312975070,1706560270073,-500.0,0.00052876,31]
[312975071,1706560270082,-1474.92,0.00052876,31]
[312975072,1706560270091,-500.0,0.00052876,31]
[312975073,1706560270101,-529.19,0.00052876,31]
[312975074,1706560270111,-500.0,0.00052876,31]
[312975075,1706560270121,-500.0,0.00052876,31]
[312975076,1706560270130,-4936.79,0.00052876,31]
[312975077,1706560270140,-820.98,0.00052876,31]
[312975078,1706560270150,-500.0,0.00052876,31]
[312975079,1706560270160,-1797.82,0.00052876,31]
[312975080,1706560270170,-1033.55,0.00052876,31]
[312975081,1706560270179,-527.47,0.00052876,31]
[312975082,1706560270189,-1398.26,0.00052876,31]
[312975083,1706560270199,-1095.17,0.00052876,31]
[312975084,1706560270208,-1726.01,0.00052876,31]
[312975085,1706560270218,-1943.7,0.00052876,31]
[312975086,1706560270227,-500.0,0.00052876,31]
[312975087,1706560270236,-500.0,0.00052876,31]
[312975088,1706560270245,-500.0,0.00052876,31]
[312975089,1706560270255,-274.61575707,0.00052876,31]
[312975090,1706560270264,-500.0,0.00052876,31]
[312975091,1706560270274,-558.58,0.00052876,31]
[312975092,1706560270284,-500.0,0.00052876,31]
[312975093,1706560270293,-1144.47,0.00052876,31]
[312975094,1706560270302,-7410.07,0.00052876,31]
[312975095,1706560270311,-500.0,0.00052876,31]
[312975096,1706560270321,-1617.52,0.00052876,31]
[312975097,1706560270331,-500.0,0.00052876,31]
[312975098,1706560270342,-2653.45,0.00052876,31]
[312975099,1706560270352,-500.0,0.00052876,31]
[312975100,1706560270361,-500.0,0.00052876,31]
[312975101,1706560270371,-500.0,0.00052876,31]
[312975102,1706560270380,-10106.11,0.00052876,31]
[312975103,1706560270390,-500.0,0.00052876,31]
[312975104,1706560270399,-500.0,0.00052876,31]
[312975105,1706560270408,-500.0,0.00052876,31]
[312975106,1706560270418,-1502.27,0.00052876,31]
[312975107,1706560270428,-500.0,0.00052876,31]
[312975108,1706560270438,-186.64888754,0.00052876,31]
[312975109,1706560270448,-1138.89,0.00052876,31]
[312975110,1706560270458,-2268.94,0.00052876,31]
[312975111,1706560270469,-642.23,0.00052876,31]
[312975112,1706560270478,-724.26,0.00052876,31]
[312975113,1706560270488,-564.2,0.00052876,2]
[312975114,1706560270498,-500.0,0.00052876,31]
[312975115,1706560270507,-1338.16,0.00052876,31]
[312975116,1706560270517,-2909.62,0.00052876,31]
[312975117,1706560270526,-636.03037481,0.00052876,2]
[312975118,1706560270535,-536.92,0.00052876,31]
[312975119,1706560270545,-764.64,0.00052876,2]
[312975120,1706560270554,-846.95,0.00052876,31]
[312975121,1706560270563,-830.73,0.00052876,31]
[312975122,1706560270573,-546.02,0.00052876,31]
[312975123,1706560270583,-1019.65,0.00052876,31]
[312975124,1706560270592,-1849.52,0.00052876,31]